fUSD/lending_fUSD_20260531
["ID","MTS","AMOUNT","RATE_DAILY","PERIOD"]
[423537921,1780203044000,-341.0,0.00023,2]
[423537904,1780203044000,-2405.55389863,0.00022557,2]
[423537905,1780203044000,-174.61919141,0.00022597,2]
[423537903,1780203044000,-151.0,0.00022557,2]
[423537907,1780203044000,-857.73993207,0.00022597,2]
[423537901,1780203044000,-1188.276205,0.00022557,2]
[423537908,1780203044000,-207.76482817,0.00022597,2]
[423537920,1780203044000,-233.0,0.00023,2]
[423537906,1780203044000,-578.20924308,0.00022597,2]
[423537918,1780203044000,-1801.0,0.00023,2]
[423537916,1780203044000,-796.0,0.00023,2]
[423537915,1780203044000,-2014.4318943,0.00023,2]
[423537914,1780203044000,-304.37,0.00022691,2]
[423537917,1780203044000,-265.0,0.00023,2]
[423537913,1780203044000,-8589.84,0.00022691,2]
[423537911,1780203044000,-664.92,0.00022691,2]
[423537912,1780203044000,-1427.79,0.00022691,2]
[423537909,1780203044000,-1428.38747117,0.00022597,2]
[423537910,1780203044000,-1667.94,0.00022691,2]
[423537994,1780203045000,-42917.98793172,0.0002483,2]
[423537990,1780203045000,-151.0,0.00024817,2]
[423537993,1780203045000,-246.037406,0.00024817,2]
[423537989,1780203045000,-500.0,0.000248,2]
[423537992,1780203045000,-151.0,0.00024817,2]
[423537986,1780203045000,-2781.82699784,0.00024749,2]
[423537991,1780203045000,-151.0,0.00024817,2]
[423537988,1780203045000,-1651.81367706,0.00024789,2]
[423537987,1780203045000,-226.08776067,0.00024789,2]
[423537984,1780203045000,-1000.0,0.00024658,2]
[423537995,1780203045000,-2177.66,0.00024879,7]
[423537983,1780203045000,-155.491187,0.00024658,2]
[423537996,1780203045000,-151.0,0.000249,2]
[423538007,1780203045000,-151.0,0.00025,2]
[423537997,1780203045000,-151.0,0.000249,2]
[423537998,1780203045000,-151.0,0.000249,2]
[423538000,1780203045000,-600.0,0.000249,9]
[423538002,1780203045000,-151.0,0.00024997,7]
[423538003,1780203045000,-751817.58763331,0.00025,2]
[423538004,1780203045000,-804.81901892,0.00025,2]
[423538005,1780203045000,-265.57790151,0.00025,2]
[423538001,1780203045000,-500.0,0.00024982,2]
[423538006,1780203045000,-1809.07397664,0.00025,2]
[423538009,1780203045000,-249.32530215,0.00025,2]
[423538010,1780203045000,-218.498777,0.00025,2]
[423538008,1780203045000,-1047.90129968,0.00025,2]
[423537985,1780203045000,-643.16,0.00024658,2]
[423537999,1780203045000,-313.83762219,0.000249,2]
[423537981,1780203045000,-2005.0,0.00024395,5]
[423537952,1780203045000,-1364.156976,0.00023533,2]
[423537980,1780203045000,-2045.0,0.00024395,5]
[423537953,1780203045000,-1364.156976,0.00023533,2]
[423537955,1780203045000,-1364.156976,0.00023533,2]
[423537957,1780203045000,-2586.85809042,0.00023653,2]
[423537954,1780203045000,-1364.156976,0.00023533,2]
[423537958,1780203045000,-150.64205866,0.00023692,2]
[423537956,1780203045000,-150.37708739,0.00023565,2]
[423537959,1780203045000,-187.78006524,0.00023693,2]
[423537963,1780203045000,-796.0,0.00024,2]
[423537961,1780203045000,-500.0,0.00023911,2]
[423537962,1780203045000,-444.18929726,0.00023913,2]
[423537960,1780203045000,-1536.04360648,0.00023693,2]
[423537964,1780203045000,-265.0,0.00024,2]
[423537982,1780203045000,-500.0,0.00024628,2]
[423537965,1780203045000,-1801.0,0.00024,2]
[423537966,1780203045000,-233.0,0.00024,2]
[423537970,1780203045000,-437.0,0.00024,2]
[423537968,1780203045000,-500.0,0.00024,2]
[423537969,1780203045000,-497.0,0.00024,2]
[423537973,1780203045000,-434.0,0.00024,2]
[423537971,1780203045000,-243.0,0.00024,2]
[423537975,1780203045000,-210.659953,0.000241,2]
[423537974,1780203045000,-220.0,0.00024,2]
[423537977,1780203045000,-194.72792766,0.00024241,2]
[423537976,1780203045000,-2682.57183977,0.00024201,2]
[423537978,1780203045000,-1592.87721992,0.00024241,2]
[423537979,1780203045000,-1493.1,0.00024324,2]
[423537967,1780203045000,-341.0,0.00024,2]
[423538011,1780203045000,-218.498777,0.00025,2]
[423537972,1780203045000,-169.0,0.00024,2]
[423538016,1780203045000,-439.2771525,0.00025,2]
[423538046,1780203045000,-1511.48,0.00025145,2]
[423538048,1780203045000,-1511.48,0.00025147,2]
[423538045,1780203045000,-585.0,0.00025082,2]
[423538047,1780203045000,-1511.48,0.00025145,2]
[423538050,1780203045000,-1511.48,0.00025147,2]
[423538052,1780203045000,-1511.48,0.00025149,2]
[423538051,1780203045000,-1511.49,0.00025149,2]
[423538049,1780203045000,-1511.48,0.00025147,2]
[423538054,1780203045000,-500.0,0.00025164,2]
[423538053,1780203045000,-1511.48,0.00025149,2]
[423538056,1780203045000,-2884.75459676,0.00025297,2]
[423538057,1780203045000,-599.60298507,0.00025336,2]
[423538060,1780203045000,-500.0,0.00025367,2]
[423538058,1780203045000,-1712.93078311,0.00025337,2]
[423538059,1780203045000,-500.0,0.00025346,2]
[423538055,1780203045000,-13405.53,0.00025257,7]
[423538062,1780203045000,-174.09425739,0.00025562,2]
[423538064,1780203045000,-585.0,0.00025637,2]
[423538061,1780203045000,-500.0,0.00025528,2]
[423538063,1780203045000,-239.79164,0.00025635,2]
[423538065,1780203045000,-911.89,0.00025644,2]
[423538067,1780203045000,-2991.49051684,0.00025845,2]
[423538071,1780203045000,-500.0,0.00025892,2]
[423538070,1780203045000,-1776.30922209,0.00025885,2]
[423538069,1780203045000,-200.0,0.00025866,2]
[423538068,1780203045000,-206.95,0.00025851,2]
[423538012,1780203045000,-218.498777,0.00025,2]
[423538044,1780203045000,-2448.39133377,0.00025074,2]
[423538043,1780203045000,-394.97244016,0.00025074,2]
[423538066,1780203045000,-500.0,0.0002571,2]
[423538038,1780203045000,-1188.276205,0.00025048,2]
[423538042,1780203045000,-17671.0218507,0.00025073,2]
[423538015,1780203045000,-506.20242509,0.00025,2]
[423538014,1780203045000,-345.96941953,0.00025,2]
[423538013,1780203045000,-218.498777,0.00025,2]
[423538017,1780203045000,-260.62575589,0.00025,2]
[423538019,1780203045000,-221.96743013,0.00025,2]
[423538021,1780203045000,-151.0,0.00025,2]
[423538020,1780203045000,-151.0,0.00025,2]
[423538022,1780203045000,-649.601898,0.00025048,2]
[423538023,1780203045000,-649.601898,0.00025048,2]
[423538025,1780203045000,-649.601898,0.00025048,2]
[423538024,1780203045000,-649.601898,0.00025048,2]
[423538028,1780203045000,-518.696371,0.00025048,2]
[423538018,1780203045000,-439.0,0.00025,2]
[423538027,1780203045000,-518.696371,0.00025048,2]
[423538026,1780203045000,-518.696371,0.00025048,2]
[423538039,1780203045000,-1188.276205,0.00025048,2]
[423538036,1780203045000,-1188.276205,0.00025048,2]
[423538041,1780203045000,-151.0,0.00025048,2]
[423538037,1780203045000,-1188.276205,0.00025048,2]
[423538032,1780203045000,-272.65,0.00025048,2]
[423538040,1780203045000,-151.0,0.00025048,2]
[423538033,1780203045000,-272.65,0.00025048,2]
[423538034,1780203045000,-151.0,0.00025048,2]
[423538030,1780203045000,-28061.07177221,0.00025048,2]
[423538031,1780203045000,-272.65,0.00025048,2]
[423538029,1780203045000,-518.696371,0.00025048,2]
[423538035,1780203045000,-272.65,0.00025048,2]
[423538104,1780203046000,-919.667051,0.00026272,2]
[423538108,1780203046000,-1356.0,0.00026272,2]
[423538106,1780203046000,-928.0,0.00026272,2]
[423538113,1780203046000,-1405.237,0.00026272,2]
[423538118,1780203046000,-1813.59822,0.00026384,2]
[423538114,1780203046000,-1226.0,0.00026272,2]
[423538115,1780203046000,-419.155,0.00026272,2]
[423538116,1780203046000,-3639.0,0.00026272,2]
[423538112,1780203046000,-527.0,0.00026272,2]
[423538124,1780203046000,-1813.59822,0.00026384,2]
[423538120,1780203046000,-1813.59822,0.00026384,2]
[423538119,1780203046000,-1813.59822,0.00026384,2]
[423538122,1780203046000,-1813.59822,0.00026384,2]
[423538121,1780203046000,-1813.59822,0.00026384,2]
[423538123,1780203046000,-1813.59822,0.00026384,2]
[423538126,1780203046000,-1813.59822,0.00026384,2]
[423538131,1780203046000,-1842.0326633,0.00026433,2]
[423538101,1780203046000,-919.667051,0.00026272,2]
[423538127,1780203046000,-1813.59822,0.00026384,2]
[423538117,1780203046000,-1493.1,0.00026296,2]
[423538110,1780203046000,-3550.0,0.00026272,2]
[423538079,1780203046000,-22410.0,0.000261,2]
[423538091,1780203046000,-489.165112,0.00026272,2]
[423538125,1780203046000,-1813.59822,0.00026384,2]
[423538072,1780203046000,-610.36690493,0.0002599,2]
[423538073,1780203046000,-4594.45505587,0.00026,2]
[423538074,1780203046000,-219.89801247,0.00026,2]
[423538075,1780203046000,-500.0,0.00026,2]
[423538076,1780203046000,-550.0,0.00026,2]
[423538077,1780203046000,-500.0,0.00026074,2]
[423538078,1780203046000,-200.0,0.000261,2]
[423538080,1780203046000,-2241.98236164,0.000261,2]
[423538099,1780203046000,-919.667051,0.00026272,2]
[423538082,1780203046000,-206.36201914,0.00026128,2]
[423538083,1780203046000,-500.0,0.00026128,2]
[423538084,1780203046000,-162.21893957,0.00026191,2]
[423538081,1780203046000,-1179.0,0.000261,2]
[423538086,1780203046000,-480.87,0.000262,7]
[423538087,1780203046000,-500.0,0.00026256,2]
[423538097,1780203046000,-919.667051,0.00026272,2]
[423538089,1780203046000,-489.165112,0.00026272,2]
[423538095,1780203046000,-489.165112,0.00026272,2]
[423538093,1780203046000,-489.165112,0.00026272,2]
[423538085,1780203046000,-585.0,0.00026192,3]
[423538129,1780203046000,-1813.59822,0.00026384,2]
[423538136,1780203046000,-151.0,0.00026564,2]
[423538128,1780203046000,-1813.59822,0.00026384,2]
[423538155,1780203046000,-163.0,0.00026627,3]
[423538158,1780203046000,-300.0,0.00026627,3]
[423538159,1780203046000,-151.0,0.00026627,3]
[423538162,1780203046000,-151.0,0.00026627,3]
[423538161,1780203046000,-151.0,0.00026627,3]
[423538160,1780203046000,-151.0,0.00026627,3]
[423538163,1780203046000,-151.0,0.00026627,3]
[423538169,1780203046000,-162.57738279,0.00026627,3]
[423538168,1780203046000,-151.0,0.00026627,3]
[423538154,1780203046000,-1546.0,0.00026627,3]
[423538166,1780203046000,-151.0,0.00026627,3]
[423538167,1780203046000,-151.0,0.00026627,3]
[423538172,1780203046000,-153.0,0.00026627,3]
[423538173,1780203046000,-153.0,0.00026627,3]
[423538170,1780203046000,-153.0,0.00026627,3]
[423538171,1780203046000,-153.0,0.00026627,3]
[423538174,1780203046000,-231.81231694,0.00026627,3]
[423538175,1780203046000,-154.0,0.00026627,3]
[423538130,1780203046000,-27929.47539936,0.000264,2]
[423538176,1780203046000,-254.35668381,0.00026627,3]
[423538165,1780203046000,-151.0,0.00026627,3]
[423538157,1780203046000,-280.3872819,0.00026627,3]
[423538164,1780203046000,-151.0,0.00026627,3]
[423538153,1780203046000,-1546.0,0.00026627,3]
[423538133,1780203046000,-500.0,0.00026438,2]
[423538132,1780203046000,-270.61270889,0.00026438,2]
[423538156,1780203046000,-163.0,0.00026627,3]
[423538138,1780203046000,-500.0,0.0002662,2]
[423538135,1780203046000,-151.0,0.00026564,2]
[423538134,1780203046000,-518.0,0.00026469,2]
[423538139,1780203046000,-221.043836,0.00026627,2]
[423538141,1780203046000,-221.043836,0.00026627,2]
[423538143,1780203046000,-2576.227454,0.00026627,2]
[423538140,1780203046000,-221.043836,0.00026627,2]
[423538137,1780203046000,-151.0,0.00026564,2]
[423538148,1780203046000,-1364.156976,0.00026627,2]
[423538142,1780203046000,-221.043836,0.00026627,2]
[423538145,1780203046000,-2576.227454,0.00026627,2]
[423538147,1780203046000,-1364.156976,0.00026627,2]
[423538146,1780203046000,-2576.227454,0.00026627,2]
[423538150,1780203046000,-1364.156976,0.00026627,2]
[423538149,1780203046000,-1364.156976,0.00026627,2]
[423538144,1780203046000,-2576.227454,0.00026627,2]
[423538151,1780203046000,-1546.0,0.00026627,3]
[423538152,1780203046000,-1546.0,0.00026627,3]
[423538287,1780203047000,-151.0,0.00027397,2]
[423538288,1780203047000,-151.0,0.00027397,2]
[423538285,1780203047000,-287.96623618,0.00027397,7]
[423538286,1780203047000,-300.0,0.00027397,2]
[423538268,1780203047000,-500.0,0.00027397,2]
[423538280,1780203047000,-444.30061494,0.00027397,2]
[423538274,1780203047000,-500.0,0.00027397,2]
[423538272,1780203047000,-500.0,0.00027397,2]
[423538282,1780203047000,-150.0,0.00027397,2]
[423538283,1780203047000,-1500.0,0.00027397,2]
[423538290,1780203047000,-151.0,0.00027397,2]
[423538299,1780203047000,-1406.279124,0.00027397,2]
[423538293,1780203047000,-151.0,0.00027397,2]
[423538289,1780203047000,-151.0,0.00027397,2]
[423538292,1780203047000,-151.0,0.00027397,2]
[423538294,1780203047000,-151.0,0.00027397,2]
[423538296,1780203047000,-151.0,0.00027397,2]
[423538297,1780203047000,-283.660702,0.00027397,2]
[423538298,1780203047000,-1000.0,0.00027397,20]
[423538295,1780203047000,-151.0,0.00027397,2]
[423538300,1780203047000,-1406.279124,0.00027397,2]
[423538265,1780203047000,-500.0,0.00027397,2]
[423538291,1780203047000,-151.0,0.00027397,2]
[423538270,1780203047000,-500.0,0.00027397,2]
[423538220,1780203047000,-328.10820166,0.00027218,2]
[423538276,1780203047000,-500.0,0.00027397,2]
[423538301,1780203047000,-1406.279124,0.00027397,2]
[423538222,1780203047000,-201.82127813,0.00027301,2]
[423538224,1780203047000,-585.0,0.00027301,4]
[423538226,1780203047000,-500.0,0.00027348,2]
[423538236,1780203047000,-1000.0,0.00027397,2]
[423538228,1780203047000,-157.4919368,0.00027397,2]
[423538232,1780203047000,-1000.0,0.00027397,2]
[423538230,1780203047000,-1000.0,0.00027397,2]
[423538234,1780203047000,-1000.0,0.00027397,2]
[423538238,1780203047000,-1000.0,0.00027397,2]
[423538278,1780203047000,-500.0,0.00027397,2]
[423538242,1780203047000,-751.95421274,0.00027397,2]
[423538244,1780203047000,-500.0,0.00027397,2]
[423538247,1780203047000,-500.0,0.00027397,2]
[423538249,1780203047000,-500.0,0.00027397,2]
[423538263,1780203047000,-500.0,0.00027397,2]
[423538253,1780203047000,-500.0,0.00027397,2]
[423538251,1780203047000,-500.0,0.00027397,2]
[423538257,1780203047000,-500.0,0.00027397,2]
[423538259,1780203047000,-500.0,0.00027397,2]
[423538261,1780203047000,-500.0,0.00027397,2]
[423538255,1780203047000,-500.0,0.00027397,2]
[423538240,1780203047000,-1000.0,0.00027397,2]
[423538304,1780203047000,-1406.279124,0.00027397,2]
[423538351,1780203047000,-398.741896,0.00027397,2]
[423538303,1780203047000,-1406.279124,0.00027397,2]
[423538331,1780203047000,-151.0,0.00027397,2]
[423538335,1780203047000,-901.091423,0.00027397,2]
[423538336,1780203047000,-151.0,0.00027397,2]
[423538333,1780203047000,-151.0,0.00027397,2]
[423538332,1780203047000,-901.091423,0.00027397,2]
[423538334,1780203047000,-901.091423,0.00027397,2]
[423538337,1780203047000,-151.0,0.00027397,2]
[423538338,1780203047000,-901.091423,0.00027397,2]
[423538339,1780203047000,-288.517632,0.00027397,2]
[423538340,1780203047000,-901.091423,0.00027397,2]
[423538328,1780203047000,-151.0,0.00027397,2]
[423538342,1780203047000,-901.091423,0.00027397,2]
[423538344,1780203047000,-901.091423,0.00027397,2]
[423538345,1780203047000,-901.091423,0.00027397,2]
[423538347,1780203047000,-901.091423,0.00027397,2]
[423538349,1780203047000,-5712.52,0.00027397,10]
[423538346,1780203047000,-901.091423,0.00027397,2]
[423538350,1780203047000,-7851.04,0.00027397,10]
[423538348,1780203047000,-643.16,0.00027397,2]
[423538352,1780203047000,-398.741896,0.00027397,2]
[423538353,1780203047000,-398.741896,0.00027397,2]
[423538302,1780203047000,-1406.279124,0.00027397,2]
[423538341,1780203047000,-901.091423,0.00027397,2]
[423538327,1780203047000,-151.0,0.00027397,2]
[423538343,1780203047000,-901.091423,0.00027397,2]
[423538330,1780203047000,-151.0,0.00027397,2]
[423538305,1780203047000,-1406.279124,0.00027397,2]
[423538329,1780203047000,-151.0,0.00027397,2]
[423538306,1780203047000,-1406.279124,0.00027397,2]
[423538308,1780203047000,-1406.279124,0.00027397,2]
[423538307,1780203047000,-1406.279124,0.00027397,2]
[423538312,1780203047000,-151.0,0.00027397,2]
[423538311,1780203047000,-151.0,0.00027397,2]
[423538310,1780203047000,-1406.279124,0.00027397,2]
[423538313,1780203047000,-151.0,0.00027397,2]
[423538314,1780203047000,-151.0,0.00027397,2]
[423538315,1780203047000,-151.0,0.00027397,2]
[423538309,1780203047000,-1406.279124,0.00027397,2]
[423538323,1780203047000,-151.0,0.00027397,2]
[423538316,1780203047000,-151.0,0.00027397,2]
[423538318,1780203047000,-151.0,0.00027397,2]
[423538320,1780203047000,-151.0,0.00027397,2]
[423538319,1780203047000,-151.0,0.00027397,2]
[423538321,1780203047000,-151.0,0.00027397,2]
[423538322,1780203047000,-151.0,0.00027397,2]
[423538326,1780203047000,-177.060749,0.00027397,2]
[423538324,1780203047000,-151.0,0.00027397,2]
[423538325,1780203047000,-151.0,0.00027397,2]
[423538317,1780203047000,-151.0,0.00027397,2]
[423538394,1780203048000,-150.0,0.00027671,2]
[423538390,1780203048000,-313.75,0.00027625,30]
[423538393,1780203048000,-313.75,0.00027655,2]
[423538397,1780203048000,-444.18929726,0.00027686,2]
[423538392,1780203048000,-313.54,0.00027655,2]
[423538395,1780203048000,-313.75,0.00027684,7]
[423538388,1780203048000,-313.75,0.00027595,7]
[423538386,1780203048000,-2228.12,0.00027581,7]
[423538385,1780203048000,-313.54,0.00027567,2]
[423538389,1780203048000,-313.54,0.00027596,7]
[423538396,1780203048000,-313.54,0.00027685,7]
[423538391,1780203048000,-313.54,0.00027626,30]
[423538400,1780203048000,-2008.0,0.000277,2]
[423538409,1780203048000,-313.54,0.00027744,2]
[423538398,1780203048000,-278.14854606,0.00027687,2]
[423538403,1780203048000,-500.0,0.00027719,15]
[423538401,1780203048000,-313.75,0.00027714,30]
[423538402,1780203048000,-313.54,0.00027715,30]
[423538404,1780203048000,-393.13,0.0002772,7]
[423538406,1780203048000,-1515.98,0.00027721,7]
[423538407,1780203048000,-2228.12,0.0002774,2]
[423538408,1780203048000,-1413.86,0.0002774,2]
[423538405,1780203048000,-3354.91,0.0002772,7]
[423538411,1780203048000,-2177.66,0.00027758,7]
[423538415,1780203048000,-313.54,0.00027804,30]
[423538412,1780203048000,-313.75,0.00027773,7]
[423538384,1780203048000,-313.75,0.00027566,2]
[423538399,1780203048000,-500.0,0.00027687,2]
[423538387,1780203048000,-1413.86,0.00027581,7]
[423538359,1780203048000,-739.16,0.000274,2]
[423538382,1780203048000,-2228.12,0.00027561,30]
[423538354,1780203048000,-398.741896,0.00027397,2]
[423538355,1780203048000,-500.0,0.000274,2]
[423538356,1780203048000,-500.0,0.000274,2]
[423538357,1780203048000,-500.0,0.000274,2]
[423538358,1780203048000,-500.0,0.000274,2]
[423538360,1780203048000,-461.63,0.000274,7]
[423538361,1780203048000,-480.87,0.000274,7]
[423538362,1780203048000,-151.0,0.00027447,7]
[423538363,1780203048000,-247.81345503,0.00027449,2]
[423538364,1780203048000,-2319.54326941,0.000275,5]
[423538365,1780203048000,-200.0,0.000275,2]
[423538368,1780203048000,-200.0,0.000275,2]
[423538369,1780203048000,-200.0,0.000275,2]
[423538366,1780203048000,-200.0,0.000275,2]
[423538367,1780203048000,-200.0,0.000275,2]
[423538370,1780203048000,-200.0,0.000275,2]
[423538371,1780203048000,-200.0,0.000275,2]
[423538372,1780203048000,-200.0,0.000275,2]
[423538374,1780203048000,-318.38920771,0.000275,2]
[423538373,1780203048000,-200.0,0.000275,2]
[423538376,1780203048000,-1980.8648231,0.00027529,2]
[423538375,1780203048000,-150.0,0.00027521,2]
[423538377,1780203048000,-500.0,0.0002753,2]
[423538378,1780203048000,-28061.07177221,0.00027539,2]
[423538380,1780203048000,-1413.86,0.0002756,30]
[423538381,1780203048000,-393.13,0.00027561,30]
[423538379,1780203048000,-3354.91,0.0002756,30]
[423538383,1780203048000,-1515.98,0.00027562,30]
[423538414,1780203048000,-313.75,0.00027803,30]
[423538419,1780203048000,-194.54931328,0.00027852,2]
[423538410,1780203048000,-313.75,0.00027744,2]
[423538447,1780203048000,-3354.91,0.0002804,30]
[423538450,1780203048000,-2228.12,0.00028059,7]
[423538448,1780203048000,-313.54,0.00028041,7]
[423538452,1780203048000,-313.54,0.0002807,30]
[423538453,1780203048000,-313.75,0.0002807,30]
[423538455,1780203048000,-2054.15682156,0.00028077,2]
[423538456,1780203048000,-151.0,0.00028091,7]
[423538454,1780203048000,-770.1586348,0.00028075,2]
[423538457,1780203048000,-235.48434623,0.00028094,2]
[423538458,1780203048000,-604.84,0.000281,7]
[423538460,1780203048000,-322.0,0.000281,7]
[423538459,1780203048000,-461.63,0.000281,7]
[423538463,1780203048000,-313.75,0.000281,2]
[423538462,1780203048000,-200.0,0.000281,2]
[423538464,1780203048000,-313.57,0.0002813,7]
[423538465,1780203048000,-313.87,0.0002813,7]
[423538466,1780203048000,-500.0,0.00028159,2]
[423538467,1780203048000,-200.0,0.000282,20]
[423538468,1780203048000,-393.13,0.000282,7]
[423538470,1780203048000,-1481.43,0.00028201,7]
[423538469,1780203048000,-3354.91,0.000282,7]
[423538471,1780203048000,-1515.98,0.00028201,7]
[423538472,1780203048000,-2228.12,0.00028218,2]
[423538473,1780203048000,-1413.86,0.00028218,2]
[423538474,1780203048000,-300.02,0.0002823,10]
[423538475,1780203048000,-192.42455968,0.00028246,2]
[423538413,1780203048000,-313.54,0.00027774,7]
[423538449,1780203048000,-1515.98,0.00028041,30]
[423538451,1780203048000,-1413.86,0.00028059,7]
[423538461,1780203048000,-313.54,0.000281,2]
[423538445,1780203048000,-393.13,0.0002804,30]
[423538416,1780203048000,-313.54,0.00027833,2]
[423538446,1780203048000,-313.75,0.0002804,7]
[423538420,1780203048000,-585.0,0.00027856,4]
[423538417,1780203048000,-313.75,0.00027833,2]
[423538421,1780203048000,-313.75,0.00027862,7]
[423538422,1780203048000,-313.54,0.00027863,7]
[423538424,1780203048000,-3354.91,0.0002788,2]
[423538425,1780203048000,-1515.98,0.00027881,2]
[423538426,1780203048000,-313.54,0.00027892,30]
[423538427,1780203048000,-313.75,0.00027892,30]
[423538423,1780203048000,-393.13,0.0002788,2]
[423538428,1780203048000,-2228.12,0.00027899,30]
[423538430,1780203048000,-195.52971007,0.00027904,2]
[423538432,1780203048000,-313.54,0.00027922,2]
[423538418,1780203048000,-500.0,0.00027845,2]
[423538429,1780203048000,-1413.86,0.00027899,30]
[423538431,1780203048000,-195.52971007,0.00027904,2]
[423538442,1780203048000,-500.0,0.00028002,2]
[423538441,1780203048000,-600.0,0.00028,2]
[423538443,1780203048000,-313.54,0.00028011,2]
[423538440,1780203048000,-2134.32450035,0.00028,2]
[423538439,1780203048000,-1350.13687672,0.00028,2]
[423538444,1780203048000,-313.75,0.00028011,2]
[423538436,1780203048000,-313.54,0.00027981,30]
[423538435,1780203048000,-313.54,0.00027952,7]
[423538437,1780203048000,-313.75,0.00027981,30]
[423538434,1780203048000,-313.75,0.00027951,7]
[423538433,1780203048000,-313.75,0.00027922,2]
[423538438,1780203048000,-200.0,0.00028,7]
[423538491,1780203049000,-209.5576904,0.00028246,2]
[423538493,1780203049000,-194.21020888,0.00028248,2]
[423538492,1780203049000,-184.0316932,0.00028246,2]
[423538497,1780203049000,-166.79260119,0.00028272,2]
[423538502,1780203049000,-163.84202192,0.00028272,2]
[423538498,1780203049000,-238.49355589,0.00028272,2]
[423538496,1780203049000,-1493.1,0.00028267,2]
[423538500,1780203049000,-248.35266981,0.00028272,2]
[423538499,1780203049000,-262.7854064,0.00028272,2]
[423538501,1780203049000,-156.98768414,0.00028272,2]
[423538490,1780203049000,-163.93828847,0.00028246,2]
[423538495,1780203049000,-339.13746195,0.00028248,2]
[423538488,1780203049000,-163.97920006,0.00028246,2]
[423538482,1780203049000,-174.13648035,0.00028246,2]
[423538487,1780203049000,-153.4442061,0.00028246,2]
[423538486,1780203049000,-154.06956147,0.00028246,2]
[423538484,1780203049000,-157.84665491,0.00028246,2]
[423538483,1780203049000,-224.12612282,0.00028246,2]
[423538480,1780203049000,-154.23008744,0.00028246,2]
[423538481,1780203049000,-207.24845509,0.00028246,2]
[423538485,1780203049000,-174.51444412,0.00028246,2]
[423538479,1780203049000,-175.87933796,0.00028246,2]
[423538478,1780203049000,-157.36609158,0.00028246,2]
[423538477,1780203049000,-150.14510327,0.00028246,2]
[423538476,1780203049000,-181.85404273,0.00028246,2]
[423538504,1780203049000,-215.86891893,0.00028272,2]
[423538489,1780203049000,-224.84264589,0.00028246,2]
[423538503,1780203049000,-178.82731103,0.00028272,2]
[423538494,1780203049000,-603.10156453,0.00028248,2]
[423538505,1780203049000,-187.48418847,0.00028272,2]
[423538533,1780203049000,-88458.26520837,0.00028405,2]
[423538532,1780203049000,-300.0,0.00028404,10]
[423538530,1780203049000,-300.0,0.00028404,10]
[423538531,1780203049000,-677.87486567,0.00028404,10]
[423538529,1780203049000,-480.88,0.000284,7]
[423538528,1780203049000,-171.9568262,0.000284,30]
[423538527,1780203049000,-272.49,0.000284,30]
[423538526,1780203049000,-200.6862977,0.000284,7]
[423538523,1780203049000,-1413.86,0.00028377,30]
[423538522,1780203049000,-2228.12,0.00028377,30]
[423538520,1780203049000,-3354.91,0.0002836,2]
[423538521,1780203049000,-1481.43,0.00028361,2]
[423538518,1780203049000,-393.13,0.0002836,2]
[423538525,1780203049000,-200.0,0.00028383,2]
[423538519,1780203049000,-1515.98,0.0002836,2]
[423538508,1780203049000,-169.62285806,0.00028272,2]